fUSD/lending_fUSD_20260201
["ID","MTS","AMOUNT","RATE_DAILY","PERIOD"]
[404203628,1769958640912,-500.0,0.00017035,2]
[404203629,1769958640920,-19476.52193935,0.0001704,2]
[404203630,1769958640930,-16222.0529241,0.0001704,2]
[404203631,1769958640938,-322.6107,0.00017099,2]
[404203632,1769958640948,-209.40437684,0.00017099,2]
[404203633,1769958640958,-174.61919141,0.00017099,2]
[404203634,1769958640967,-225.18697533,0.00017099,2]
[404203635,1769958640976,-500.0,0.00017099,2]
[404203636,1769958640985,-500.0,0.00017099,2]
[404203637,1769958640994,-500.0,0.00017099,2]
[404203638,1769958641003,-500.0,0.00017099,2]
[404203639,1769958641013,-250.0,0.00017099,2]
[404203640,1769958641022,-500.0,0.00017099,2]
[404203641,1769958641031,-250.0,0.00017099,2]
[404203642,1769958641041,-500.0,0.00017099,2]
[404203643,1769958641050,-250.0,0.00017099,2]
[404203644,1769958641060,-500.0,0.00017099,2]
[404203645,1769958641070,-250.0,0.00017099,2]
[404203646,1769958641078,-500.0,0.00017099,2]
[404203647,1769958641087,-250.0,0.00017099,2]
[404203648,1769958641096,-500.0,0.00017099,2]
[404203649,1769958641105,-250.0,0.00017099,2]
[404203650,1769958641114,-500.0,0.00017099,2]
[404203651,1769958641123,-250.0,0.00017099,2]
[404203652,1769958641133,-500.0,0.00017099,2]
[404203653,1769958641142,-250.0,0.00017099,2]
[404203654,1769958641151,-250.0,0.00017099,2]
[404203655,1769958641161,-250.0,0.00017099,2]
[404203656,1769958641170,-209.40437684,0.00017099,2]
[404203657,1769958641179,-250.0,0.00017099,2]
[404203658,1769958641188,-1000.0,0.00017105,2]
[404203659,1769958641198,-1158.01593493,0.00017121,2]
[404203660,1769958641207,-419.33766929,0.00017129,2]
[404203661,1769958641216,-500.0,0.00017149,2]
[404203662,1769958641225,-217.15233878,0.00017154,2]
[404203663,1769958641235,-1000.0,0.00017155,2]
[404203664,1769958641244,-200.0,0.00017183,2]
[404203665,1769958641253,-225.18697532,0.00017209,2]
[404203666,1769958641263,-200.0,0.0001726,2]
[404203667,1769958641272,-233.51889341,0.00017264,2]
[404203668,1769958641282,-200.0,0.00017299,2]
[404203669,1769958641292,-500.0,0.00017309,2]
[404203670,1769958641301,-242.15909246,0.00017319,2]
[404203671,1769958641311,-19476.52193935,0.00017327,2]
[404203672,1769958641320,-16222.0529241,0.00017327,2]
[404203673,1769958641329,-200.0,0.00017342,2]
[404203674,1769958641338,-2834.0,0.0001736,2]
[404203675,1769958641348,-251.11897888,0.00017374,2]
[404203676,1769958641357,-260.4103811,0.00017429,2]
[404203677,1769958641366,-270.0455652,0.00017484,2]
[404203678,1769958641376,-1045.68637885,0.000175,2]
[404203679,1769958641386,-280.03725112,0.00017539,2]
[404203680,1769958641395,-969.0,0.00017567,2]
[404203681,1769958641404,-500.0,0.00017583,2]
[404203682,1769958641413,-150.0,0.00017589,2]
[404203683,1769958641423,-290.39862941,0.00017594,2]
[404203684,1769958641432,-19476.52193935,0.00017613,2]
[404203685,1769958641441,-16222.0529241,0.00017613,2]
[404203686,1769958641451,-1732.32258227,0.00017621,2]
[404203687,1769958641461,-2343.8844,0.00017621,2]
[404203688,1769958641471,-183.0,0.00017632,2]
[404203689,1769958641480,-168.0,0.00017638,2]
[404203690,1769958641490,-150.0,0.00017644,2]
[404203691,1769958641499,-217.15233878,0.00017647,2]
[404203692,1769958641510,-181.08010149,0.00017647,2]
[404203693,1769958641521,-301.1433787,0.00017649,2]
[404203694,1769958641529,-969.0,0.0001765,2]
[404203695,1769958641538,-2263.0,0.0001768,2]
[404203696,1769958641547,-150.0,0.00017699,2]
[404203697,1769958641557,-395.0,0.00017741,2]
[404203698,1769958641568,-168.0,0.00017748,2]
[404203699,1769958641577,-327.0,0.00017751,2]
[404203700,1769958641586,-150.0,0.00017753,2]
[404203701,1769958641595,-395.0,0.00017754,2]
[404203702,1769958641604,-343.69764472,0.00017757,2]
[404203703,1769958641614,-500.0,0.00017808,2]
[404203704,1769958641623,-150.0,0.00017808,2]
[404203705,1769958641632,-398.0,0.0001781,2]
[404203706,1769958641641,-382.0,0.0001781,2]
[404203707,1769958641655,-382.0,0.00017811,2]
[404203708,1769958641664,-236.65625,0.0001782,2]
[404203709,1769958641674,-236.65625,0.0001782,2]
[404203710,1769958641685,-395.0,0.00017822,2]
[404203711,1769958641694,-382.0,0.00017825,2]
[404203712,1769958641703,-200.0,0.00017847,2]
[404203713,1769958641713,-200.0,0.00017856,2]
[404203714,1769958641725,-500.0,0.00017863,2]
[404203715,1769958641734,-250.0,0.00017863,2]
[404203716,1769958641744,-178.76595723,0.00017865,2]
[404203717,1769958641754,-530.55631052,0.00017866,2]
[404203718,1769958641764,-398.0,0.00017868,2]
[404203719,1769958641773,-25000.0,0.00017874,3]
[404203720,1769958641782,-25000.0,0.00017882,3]
[404203721,1769958641791,-395.0,0.00017887,2]
[404203722,1769958641800,-742.85436818,0.0001789,2]
[404203723,1769958641809,-25000.0,0.00017891,3]
[404203724,1769958641819,-168.0,0.00017896,2]
[404203725,1769958641827,-500.0,0.00017899,2]
[404203726,1769958641836,-697.05732765,0.000179,2]
[404203727,1769958641846,-167.0,0.000179,2]
[404203728,1769958641855,-1969.81038165,0.000179,2]
[404203729,1769958641864,-25000.0,0.000179,3]
[404203730,1769958641874,-10138.3866,0.000179,2]
[404203731,1769958641883,-10000.0,0.000179,2]
[404203732,1769958641892,-25000.0,0.000179,3]
[404203733,1769958641901,-24775.41253427,0.000179,3]
[404203734,1769958641911,-19476.52193935,0.000179,2]
[404203735,1769958641920,-16222.0529241,0.000179,2]
[404203736,1769958641929,-6030.0,0.000179,2]
[404203737,1769958641938,-184.423777,0.00017906,2]
[404203738,1769958641947,-395.0,0.00017906,2]
[404203739,1769958641956,-411.0,0.0001791,2]
[404203740,1769958641966,-500.0,0.00017918,2]
[404203741,1769958641975,-411.0,0.00017937,2]
[404203742,1769958641984,-200.0,0.00017942,2]
[404203743,1769958641993,-382.0,0.00017945,2]
[404203744,1769958642003,-500.0,0.00017972,2]
[404203745,1769958642012,-742.85436818,0.0001799,2]
[404203746,1769958642022,-197.43148624,0.00017998,2]
[404203747,1769958642031,-249.27040885,0.00017998,2]
[404203748,1769958642040,-500.0,0.00017998,2]
[404203749,1769958642049,-150.0,0.00017999,2]
[404203750,1769958642059,-150.0,0.00017999,2]
[404203751,1769958642068,-150.0,0.00017999,2]
[404203752,1769958642077,-150.0,0.00017999,2]
[404203753,1769958642087,-150.0,0.00017999,2]
[404203754,1769958642096,-150.0,0.00017999,2]
[404203755,1769958642105,-240.62946663,0.00017999,2]
[404203756,1769958642114,-320112.438934,0.00017999,2]
[404203757,1769958642124,-155.0,0.00017999,2]
[404203758,1769958642133,-922.5219008,0.00017999,2]
[404203759,1769958642142,-15424.1582149,0.00017999,2]
[404203760,1769958642153,-419.12847376,0.00017999,2]
[404203761,1769958642162,-1538150.41331918,0.00018,2]
[404203762,1769958642173,-394473.75277034,0.00018,2]
[404203763,1769958642182,-136875.70560202,0.00018,2]
[404203764,1769958642192,-125272.41184809,0.00018,2]
[404203765,1769958642202,-308717.32092119,0.00018,2]
[404203766,1769958642211,-370622.49180865,0.00018,2]
[404203767,1769958642221,-1201863.58197115,0.00018,2]
[404203768,1769958642537,-20918.79592586,0.00018,2]
[404203769,1769958642548,-3342.46626735,0.00018,2]
[404203770,1769958642559,-754.07848955,0.00018,2]
[404203771,1769958642571,-787.36629238,0.00018,2]
[404203772,1769958642705,-151.0,0.00015618,2]
[404203773,1769958642715,-151.0,0.00015618,2]
[404203774,1769958642726,-151.0,0.00015618,2]
[404203775,1769958642735,-1881.88086353,0.00016057,2]
[404203776,1769958642744,-3318.85923311,0.00018,2]
[404203777,1769958642756,-414736.99033746,0.00018,2]
[404203779,1769958642767,-9973.26344556,0.00018,2]
[404203811,1769958644763,-492.60178495,0.0001532,2]
[404203812,1769958644775,-1881.88086353,0.00016426,2]
[404203813,1769958644784,-4214.76532606,0.00018,2]
[404203814,1769958644795,-5315.1,0.00018,2]
[404203815,1769958644829,-954.71652179,0.00018,2]
[404203816,1769958644882,-223663.73301869,0.00018,2]
[404203817,1769958644892,-502794.51910574,0.00018,2]
[404203818,1769958644905,-14683.24286065,0.00018,2]
[404203819,1769958644916,-27927.61434903,0.00018,2]
[404203858,1769958646032,-750168.257174,0.00018,2]
[404203862,1769958646149,-13960.82583248,0.00018,2]
[404203863,1769958646209,-1285.8,0.00018,2]
[404203864,1769958646270,-530.23719591,0.00018,2]
[404203865,1769958646330,-3292.54676568,0.00018,2]
[404203866,1769958646342,-2288.4119159,0.00018,2]
[404203867,1769958646354,-678.25600326,0.00018,2]
[404203868,1769958661244,1148.03888741,0.00015292,2]
[404203869,1769958663463,1099.34086987,0.00015291,5]
[404203870,1769958689782,150.35,0.00015282,3]
[404203871,1769958700408,451.09,0.00015282,3]
[404203872,1769958853788,300.7,0.00015282,3]
[404203901,1769959552066,7542.5437125,0.0001269,2]
[404203902,1769959552091,2377.21112471,0.0001269,2]
[404203903,1769959591125,-187.34,0.00014059,2]
[404203904,1769959591147,-90.10426028,0.0001409,2]
[404203971,1769959832149,-1500.0,0.00014,2]
[404203973,1769959832158,-265.0,0.00014,2]
[404203975,1769959832167,-2622.73,0.00014001,2]
[404203976,1769959832176,-1016.0,0.00014121,2]
[404203977,1769959832185,-300.0,0.00014122,2]
[404203978,1769959832195,-1200.0,0.00014122,2]
[404203979,1769959832203,-300.0,0.00014122,2]
[404203980,1769959832213,-300.0,0.00014122,2]
[404203981,1769959832222,-241.4047355,0.00014123,2]
[404203982,1769959832238,-12784.4252645,0.00014123,2]
[404203983,1769959832248,-150.0,0.00014123,2]
[404203984,1769959832256,-561.85744553,0.00014373,2]
[404203985,1769959832265,-1189.79,0.00014494,2]
[404203986,1769959832274,-200.0,0.00014584,2]
[404203987,1769959832283,-348.28,0.00014627,2]
[404203988,1769959832293,-150.0,0.00014675,2]
[404203989,1769959832302,-1000.0,0.00014675,2]
[404203990,1769959832311,-91627.64175834,0.00014676,2]
[404203991,1769959832321,-941.37048386,0.0001486,2]
[404203992,1769959832330,-1080.0,0.00014939,2]
[404203993,1769959832339,-1399.0,0.00014975,2]
[404203994,1769959832348,-4121.1669,0.00014992,2]
[404203995,1769959832358,-2500.0,0.00014992,2]
[404203996,1769959832366,-10000.0,0.00014992,2]
[404203997,1769959832376,-14090.8268982,0.00015001,2]
[404203998,1769959832385,-1176.17553975,0.00015001,2]
[404203999,1769959832396,-171.64203726,0.00015001,2]
[404204000,1769959832405,-492.60178495,0.00015001,2]
[404204001,1769959832414,-1303.0,0.00015005,2]
[404204003,1769959832423,-523.0,0.00015007,2]
[404204004,1769959832432,-612.38678566,0.00015082,2]
[404204006,1769959832441,-500.0,0.00015091,2]
[404204008,1769959832451,-500.0,0.00015091,2]
[404204010,1769959832460,-500.0,0.00015091,2]
[404204012,1769959832469,-500.0,0.00015091,2]
[404204014,1769959832479,-500.0,0.00015091,2]
[404204016,1769959832490,-500.0,0.00015091,2]
[404204018,1769959832499,-500.0,0.00015091,2]
[404204020,1769959832508,-500.0,0.00015091,2]
[404204022,1769959832517,-500.0,0.00015091,2]
[404204023,1769959832526,-500.0,0.00015091,2]
[404204025,1769959832535,-500.0,0.00015091,2]
[404204028,1769959832544,-500.0,0.00015091,2]
[404204029,1769959832554,-1340.28204513,0.00015091,2]
[404204030,1769959832562,-61738.66814085,0.00015092,2]
[404204031,1769959832574,-17502.67526193,0.00015092,2]
[404204032,1769959832585,-2969.70014412,0.00015092,2]
[404204033,1769959832596,-19363.19456424,0.00015092,2]
[404204034,1769959832610,-250.0,0.00015092,2]
[404204035,1769959838214,-2798175.76188886,0.00015092,2]
[404204036,1769959838224,-398.0,0.00015101,2]
[404204037,1769959838236,-2471.8202,0.00015191,2]
[404204038,1769959838245,-237.2586,0.00015191,2]
[404204039,1769959838254,-1348.779,0.00015191,2]
[404204040,1769959838263,-204.005,0.00015191,2]
[404204041,1769959838272,-379.7001305,0.00015192,2]
[404204042,1769959838282,-789.55054716,0.00015192,2]
[404204043,1769959838291,-1067.11313122,0.00015192,2]
[404204044,1769959838300,-500.0,0.00015192,2]
[404204045,1769959838310,-1189.79,0.00015218,2]
[404204046,1769959838319,-414.37,0.00015243,2]
[404204047,1769959838329,-151.0,0.00015283,2]
[404204048,1769959838338,-151.0,0.00015283,2]
[404204049,1769959838347,-151.0,0.00015283,2]
[404204050,1769959838356,-151.0,0.00015283,2]
[404204051,1769959838366,-151.0,0.00015283,2]
[404204052,1769959838375,-151.0,0.00015283,2]
[404204053,1769959838384,-151.0,0.00015283,2]
[404204054,1769959838393,-151.0,0.00015283,2]
[404204055,1769959838403,-151.0,0.00015283,2]
[404204056,1769959838412,-151.0,0.00015283,2]
[404204057,1769959838421,-151.0,0.00015283,2]
[404204058,1769959838430,-151.0,0.00015283,2]
[404204059,1769959838440,-151.0,0.00015283,2]
[404204060,1769959838451,-151.0,0.00015283,2]
[404204062,1769959838460,-151.0,0.00015283,2]
[404204064,1769959838470,-151.0,0.00015283,2]
[404204065,1769959838479,-151.0,0.00015283,2]
[404204066,1769959838489,-151.0,0.00015283,2]
[404204067,1769959838499,-151.0,0.00015283,2]
[404204068,1769959838509,-151.0,0.00015283,2]
[404204069,1769959838519,-151.0,0.00015283,2]
[404204071,1769959838528,-500.0,0.00015283,2]
[404204072,1769959838537,-151.0,0.00015283,2]
[404204073,1769959838547,-151.0,0.00015283,2]
[404204074,1769959838556,-500.0,0.00015283,2]
[404204075,1769959838565,-151.0,0.00015283,2]
[404204076,1769959838575,-500.0,0.00015283,2]
[404204077,1769959838584,-151.0,0.00015283,2]
[404204078,1769959838594,-151.0,0.00015283,2]
[404204079,1769959838603,-500.0,0.00015283,2]
[404204080,1769959838612,-151.0,0.00015283,2]
[404204081,1769959838621,-500.0,0.00015283,2]
[404204082,1769959838631,-151.0,0.00015283,2]
[404204083,1769959838640,-151.0,0.00015283,2]
[404204084,1769959838649,-200.0,0.00015283,2]
[404204085,1769959838659,-500.0,0.00015283,2]
[404204086,1769959838668,-151.0,0.00015283,2]
[404204087,1769959838678,-151.0,0.00015283,2]
[404204088,1769959838687,-500.0,0.00015283,2]
[404204089,1769959838696,-500.0,0.00015283,2]
[404204090,1769959838706,-500.0,0.00015283,2]
[404204091,1769959838715,-500.0,0.00015283,2]
[404204092,1769959838724,-500.0,0.00015283,2]
[404204093,1769959838733,-200.0,0.00015283,2]
[404204094,1769959838744,-500.0,0.00015283,2]
[404204095,1769959838753,-500.0,0.00015283,2]
[404204096,1769959838763,-500.0,0.00015283,2]
[404204097,1769959838772,-500.0,0.00015283,2]
[404204098,1769959838781,-313.59826684,0.00015283,2]
[404204099,1769959838791,-500.0,0.00015283,2]
[404204100,1769959838799,-461.87661328,0.00015283,2]
[404204101,1769959838809,-500.0,0.0001529,2]
[404204102,1769959838819,-155.0,0.00015291,2]
[404204103,1769959838828,-500.0,0.00015291,2]
[404204104,1769959838837,-500.0,0.00015291,2]
[404204105,1769959838846,-500.0,0.00015291,2]
[404204106,1769959838856,-513.17443347,0.00015291,2]
[404204107,1769959838864,-500.0,0.00015291,2]
[404204108,1769959838873,-500.0,0.00015291,2]
[404204109,1769959838883,-500.0,0.00015291,2]
[404204110,1769959838892,-500.0,0.00015291,2]
[404204111,1769959838901,-500.0,0.00015291,2]
[404204112,1769959838911,-500.0,0.00015291,2]
[404204113,1769959838920,-500.0,0.00015291,2]
[404204114,1769959838929,-500.0,0.00015291,2]
[404204115,1769959838938,-500.0,0.00015291,2]
[404204116,1769959838947,-500.0,0.00015291,2]
[404204117,1769959838956,-500.0,0.00015291,2]
[404204118,1769959838966,-500.0,0.00015291,2]
[404204119,1769959838975,-500.0,0.00015291,2]
[404204120,1769959838984,-500.0,0.00015291,2]
[404204121,1769959838995,-500.0,0.00015291,2]
[404204122,1769959839007,-500.0,0.00015291,2]
[404204123,1769959839016,-500.0,0.00015291,2]
[404204124,1769959839025,-500.0,0.00015291,2]
[404204125,1769959839034,-500.0,0.00015291,2]
[404204126,1769959839045,-500.0,0.00015291,2]
[404204127,1769959839055,-500.0,0.00015291,2]
[404204128,1769959839066,-525.19,0.00015291,2]
[404204129,1769959839076,-500.0,0.00015291,2]
[404204130,1769959839085,-500.0,0.00015291,2]
[404204131,1769959839094,-500.0,0.00015291,2]
[404204132,1769959839103,-500.0,0.00015291,2]
[404204133,1769959839113,-500.0,0.00015291,2]
[404204134,1769959839122,-345.84331997,0.00015291,2]
[404204135,1769959839132,-500.0,0.00015291,2]
[404204136,1769959839142,-500.0,0.00015291,2]
[404204137,1769959839151,-503.94494328,0.00015291,2]
[404204138,1769959839160,-500.0,0.00015291,2]
[404204139,1769959839169,-500.0,0.00015291,2]
[404204140,1769959839178,-500.0,0.00015291,2]
[404204141,1769959839187,-500.0,0.00015291,2]
[404204142,1769959839197,-500.0,0.00015291,2]
[404204143,1769959839206,-500.0,0.00015291,2]
[404204144,1769959839216,-500.0,0.00015291,2]
[404204145,1769959839225,-500.0,0.00015291,2]
[404204146,1769959839235,-500.0,0.00015291,2]
[404204147,1769959839246,-500.0,0.00015291,2]
[404204148,1769959839256,-500.0,0.00015291,2]
[404204149,1769959839265,-500.0,0.00015291,2]
[404204150,1769959839274,-500.0,0.00015291,2]
[404204151,1769959839283,-500.0,0.00015291,2]
[404204152,1769959839292,-500.0,0.00015291,2]
[404204153,1769959839301,-500.0,0.00015291,2]
[404204154,1769959839311,-500.0,0.00015291,2]
[404204155,1769959839320,-500.0,0.00015291,2]
[404204156,1769959839329,-500.0,0.00015291,2]
[404204157,1769959839338,-500.0,0.00015291,2]
[404204158,1769959839347,-500.0,0.00015291,2]
[404204159,1769959839357,-500.0,0.00015291,2]
[404204160,1769959839366,-500.0,0.00015291,2]
[404204161,1769959839375,-500.0,0.00015291,2]
[404204162,1769959839384,-500.0,0.00015291,2]
[404204163,1769959839393,-500.0,0.00015291,2]
[404204164,1769959839402,-500.0,0.00015291,2]
[404204165,1769959839411,-500.0,0.00015291,2]
[404204166,1769959839421,-500.0,0.00015291,2]
[404204167,1769959839430,-500.0,0.00015291,2]
[404204168,1769959839440,-500.0,0.00015291,2]
[404204169,1769959839449,-500.0,0.00015291,2]
[404204170,1769959839458,-500.0,0.00015291,2]
[404204171,1769959839467,-500.0,0.00015291,2]
[404204172,1769959839477,-500.0,0.00015291,2]
[404204173,1769959839486,-500.0,0.00015291,2]
[404204174,1769959839495,-500.0,0.00015291,2]
[404204175,1769959839504,-511.68014274,0.00015291,2]
[404204176,1769959839514,-500.0,0.00015291,2]
[404204177,1769959839524,-500.0,0.00015291,2]
[404204178,1769959839533,-500.0,0.00015291,2]
[404204179,1769959839543,-500.0,0.00015291,2]
[404204180,1769959839552,-500.0,0.00015291,2]
[404204181,1769959839562,-500.0,0.00015291,2]
[404204182,1769959839571,-500.0,0.00015291,2]
[404204183,1769959839581,-500.0,0.00015291,2]
[404204184,1769959839590,-500.0,0.00015291,2]
[404204185,1769959839599,-500.0,0.00015291,2]
[404204186,1769959839609,-500.0,0.00015291,2]
[404204187,1769959839618,-500.0,0.00015291,2]
[404204188,1769959839628,-350.55637179,0.00015291,2]
[404204189,1769959839637,-621.19118129,0.00015291,2]
[404204190,1769959839647,-500.0,0.00015291,2]
[404204191,1769959839656,-500.0,0.00015291,2]
[404204192,1769959839665,-857.04866814,0.00015291,2]
[404204193,1769959839674,-857.04866814,0.00015291,2]
[404204194,1769959839683,-857.04866814,0.00015291,2]
[404204195,1769959839693,-584.58075773,0.00015291,2]
[404204196,1769959839702,-857.04866814,0.00015291,2]
[404204197,1769959839711,-857.04866814,0.00015291,2]
[404204198,1769959839720,-857.04866814,0.00015291,2]
[404204199,1769959839729,-857.04866814,0.00015291,2]
[404204200,1769959839739,-857.04866814,0.00015291,2]
[404204201,1769959839749,-857.04866814,0.00015291,2]
[404204202,1769959839758,-857.04866814,0.00015291,2]
[404204203,1769959839768,-857.04866814,0.00015291,2]
[404204204,1769959839777,-857.04866814,0.00015291,2]
[404204205,1769959839787,-500.0,0.00015291,2]
[404204206,1769959839796,-241.6178036,0.00015291,2]
[404204207,1769959839805,-217.11673659,0.00015291,2]
[404204208,1769959839815,-886.29781675,0.00015291,2]
[404204209,1769959839983,-203.30202647,0.00015291,2]
[404204210,1769959839997,-886.29781675,0.00015291,2]
[404204211,1769959840008,-886.29781675,0.00015291,2]
[404204212,1769959840020,-886.29781675,0.00015291,2]
[404204213,1769959840031,-886.29781675,0.00015291,2]
[404204214,1769959840041,-886.29781675,0.00015291,2]
[404204215,1769959840050,-886.29781675,0.00015291,2]
[404204216,1769959840059,-886.29781675,0.00015291,2]
[404204217,1769959840070,-886.29781675,0.00015291,2]
[404204218,1769959840079,-886.29781675,0.00015291,2]
[404204219,1769959840088,-886.29781675,0.00015291,2]
[404204220,1769959840097,-886.29781675,0.00015291,2]
[404204221,1769959840107,-886.29781675,0.00015291,2]
[404204222,1769959840116,-886.29781675,0.00015291,2]
[404204223,1769959840126,-886.29781675,0.00015291,2]
[404204224,1769959840135,-886.29781675,0.00015291,2]
[404204225,1769959840146,-886.29781675,0.00015291,2]
[404204226,1769959840155,-886.29781675,0.00015291,2]
[404204227,1769959840165,-886.29781675,0.00015291,2]
[404204228,1769959840174,-886.29781675,0.00015291,2]
[404204229,1769959840184,-886.29781675,0.00015291,2]
[404204230,1769959840193,-886.29781675,0.00015291,2]
[404204231,1769959840203,-886.29781675,0.00015291,2]
[404204232,1769959840212,-886.29781675,0.00015291,2]
[404204233,1769959840220,-886.29781675,0.00015291,2]
[404204234,1769959840231,-886.29781675,0.00015291,2]
[404204235,1769959840242,-886.29781675,0.00015291,2]
[404204236,1769959840252,-886.29781675,0.00015291,2]
[404204237,1769959840262,-886.29781675,0.00015291,2]
[404204238,1769959840271,-886.29781675,0.00015291,2]
[404204239,1769959840281,-886.29781675,0.00015291,2]
[404204240,1769959840290,-886.29781675,0.00015291,2]
[404204241,1769959840300,-886.29781675,0.00015291,2]
[404204242,1769959840309,-886.29781675,0.00015291,2]
[404204243,1769959840318,-886.29781675,0.00015291,2]
[404204244,1769959840327,-886.29781675,0.00015291,2]
[404204245,1769959840336,-886.29781675,0.00015291,2]
[404204246,1769959840345,-886.29781675,0.00015291,2]
[404204247,1769959840355,-886.29781675,0.00015291,2]
[404204248,1769959840364,-886.29781675,0.00015291,2]
[404204249,1769959840373,-886.29781675,0.00015291,2]
[404204250,1769959840383,-886.29781675,0.00015291,2]
[404204251,1769959840394,-871.33418829,0.00015291,2]
[404204252,1769959840403,-871.33418829,0.00015291,2]
[404204253,1769959840412,-871.33418829,0.00015291,2]
[404204254,1769959840422,-871.33418829,0.00015291,2]
[404204255,1769959840432,-871.33418829,0.00015291,2]
[404204256,1769959840441,-871.33418829,0.00015291,2]
[404204257,1769959840451,-871.33418829,0.00015291,2]
[404204258,1769959840460,-871.33418829,0.00015291,2]
[404204259,1769959840470,-871.33418829,0.00015291,2]
[404204260,1769959840479,-871.33418829,0.00015291,2]
[404204261,1769959840492,-871.33418829,0.00015291,2]
[404204262,1769959840502,-871.33418829,0.00015291,2]
[404204263,1769959840512,-871.33418829,0.00015291,2]
[404204264,1769959840522,-871.33418829,0.00015291,2]
[404204265,1769959840532,-871.33418829,0.00015291,2]
[404204266,1769959840542,-871.33418829,0.00015291,2]
[404204267,1769959840551,-871.33418829,0.00015291,2]
[404204268,1769959840560,-871.33418829,0.00015291,2]
[404204269,1769959840570,-871.33418829,0.00015291,2]
[404204270,1769959840581,-871.33418829,0.00015291,2]
[404204271,1769959840591,-871.33418829,0.00015291,2]
[404204272,1769959840601,-871.33418829,0.00015291,2]
[404204273,1769959840612,-871.33418829,0.00015291,2]
[404204274,1769959840622,-871.33418829,0.00015291,2]
[404204275,1769959840632,-871.33418829,0.00015291,2]
[404204276,1769959840642,-871.33418829,0.00015291,2]
[404204277,1769959840651,-871.33418829,0.00015291,2]
[404204278,1769959840662,-871.33418829,0.00015291,2]
[404204279,1769959840671,-871.33418829,0.00015291,2]
[404204281,1769959840681,-871.33418829,0.00015291,2]
[404204282,1769959840691,-871.33418829,0.00015291,2]
[404204283,1769959840700,-871.33418832,0.00015291,2]
[404204284,1769959840710,-871.33418832,0.00015291,2]
[404204285,1769959840720,-871.33418832,0.00015291,2]
[404204286,1769959840731,-871.33418832,0.00015291,2]
[404204287,1769959840743,-871.33418832,0.00015291,2]
[404204288,1769959840752,-871.33418829,0.00015291,2]
[404204289,1769959840762,-1000.0,0.00015292,2]
[404204290,1769959840771,-17185.5851,0.00015292,2]
[404204291,1769959840781,-1517.64,0.000153,2]
[404204292,1769959840790,-14090.82689819,0.00015323,2]
[404204293,1769959840799,-4466.37135137,0.00015344,2]
[404204294,1769959840809,-194.82973596,0.000154,2]
[404204295,1769959840818,-1176.1755397,0.00015415,2]
[404204296,1769959840828,-521.0,0.00015458,2]
[404204297,1769959840837,-500.0,0.00015466,2]
[404204298,1769959840846,-420.0,0.0001547,2]
[404204299,1769959840855,-420.0,0.0001547,2]
[404204300,1769959840864,-191.35,0.00015519,2]
[404204301,1769959840874,-1680.0,0.00015534,2]
[404204302,1769959840883,-545.29500971,0.00015541,2]
[404204303,1769959840892,-379.70013045,0.00015643,2]
[404204304,1769959840901,-14090.82689819,0.00015645,2]
[404204305,1769959840910,-500.0,0.0001574,2]
[404204306,1769959840919,-461.17031729,0.00015759,2]
[404204308,1769959840928,-150.5654977,0.00015792,2]
[404204309,1769959840937,-500.0,0.00015793,2]
[404204310,1769959840947,-255.0,0.00015805,2]
[404204311,1769959840956,-1176.1755397,0.00015829,2]
[404204312,1769959840965,-200.0,0.00015831,2]
[404204313,1769959840974,-200.0,0.00015831,2]
[404204314,1769959840984,-789.55054714,0.00015869,2]